bitfinex-derivatives/quotes_SOLF0:USTF0_20250524
["timestamp","ask_amount","ask_price","bid_price","bid_amount"]
[1748046940002,5.7704651,174.58,174.54,5.76942422]
[1748046940800,5.7704651,174.58,174.55,5.7279]
[1748046941300,5.7704651,174.58,174.54,5.76942422]
[1748046945297,0.0432651,174.58,174.54,0.04122422]
[1748046946605,0.0432651,174.58,174.57,5.7273]
[1748046947503,126.86,174.64,174.55,3.9436]
[1748046948006,126.86,174.68,174.56,5.97981939]
[1748046948211,126.86,174.68,174.59,5.97981939]
[1748046948398,0.03664145,174.65,174.62,0.0407515]
[1748046948706,137.49826806,174.72,174.62,0.0407515]
[1748046948898,137.49826806,174.72,174.62,6.02057089]
[1748046949094,137.49826806,174.72,174.63,1.8974]
[1748046949295,137.49826806,174.72,174.64,126.86]
[1748046949497,137.49826806,174.72,174.65,5.97981939]
[1748046949700,0.04111303,174.7,174.67,0.04016771]
[1748046950202,0.04111303,174.7,174.69,5.7234]
[1748046951103,0.04111303,174.7,174.68,5.7236]
[1748046951507,0.04111303,174.7,174.67,0.04016771]
[1748046952194,0.04111303,174.7,174.68,5.7234]
[1748046952397,0.04111303,174.7,174.67,0.04016771]
[1748046954112,0.04111303,174.7,174.69,5.7234]
[1748046960309,1.303e-05,174.7,174.69,5.7234]
[1748046960506,126.86,174.76,174.74,5.7216]
[1748046960815,5.7207,174.78,174.74,5.7216]
[1748046961409,5.7208,174.77,174.72,5.7221]
[1748046961617,0.03790238,174.78,174.74,0.03654515]
[1748046962417,0.03790238,174.78,174.76,5.7208]
[1748046962611,0.03790238,174.78,174.74,0.03654515]
[1748046963217,0.03790238,174.78,174.77,5.7208]
[1748046966417,0.03790238,174.78,174.74,0.03654515]
[1748046967224,0.03790238,174.78,174.77,5.7208]
[1748046968221,126.74,174.9,174.77,5.72]
[1748046968419,126.74,174.9,174.79,5.97981939]
[1748046968617,5.7174,174.88,174.84,5.7182]
[1748046968920,126.74,174.9,174.79,132.71981939]
[1748046969129,0.02140158,174.86,174.83,0.03644567]
[1748046970426,0.02140158,174.86,174.84,5.7184]
[1748046970725,0.02140158,174.86,174.83,0.03644567]
[1748046971413,0.02140158,174.86,174.83,5.75494567]
[1748046972327,0.02140158,174.86,174.84,5.7185]
[1748046973226,0.02140158,174.86,174.85,5.7181]
[1748046973629,0.02140158,174.86,174.83,0.03644567]
[1748046973832,0.02140158,174.86,174.83,5.75494567]
[1748046974028,0.02140158,174.86,174.83,0.03644567]
[1748046975526,0.02140158,174.86,174.83,5.75494567]
[1748046975927,0.02140158,174.86,174.83,0.03644567]
[1748046976129,0.02140158,174.86,174.84,5.7185]
[1748046977326,0.02140158,174.86,174.85,5.7181]
[1748046978528,5.7156,174.93,174.89,5.7166]
[1748046978730,126.24,174.94,174.84,126.24]
[1748046979125,5.7162,174.91,174.84,126.24]
[1748046979326,126.24,174.94,174.84,126.24]
[1748046979528,5.7156,174.93,174.87,0.04237731]
[1748046979826,126.24,174.94,174.87,0.04237731]
[1748046980429,130.1881,174.98,174.87,0.04237731]
[1748046980727,128.1735,174.98,174.91,0.03963864]
[1748046980926,1.9335,174.98,174.91,0.03963864]
[1748046981126,128.2811,175.02,174.91,0.03963864]
[1748046981328,128.2811,175.02,174.95,0.04354239]
[1748046982232,5.7145,174.96,174.95,0.04354239]
[1748046982533,2.0411,175.02,174.95,0.04354239]
[1748046983032,126.24,175.01,174.95,0.04354239]
[1748046983236,5.714,174.98,174.95,0.04354239]
[1748046983826,5.7143,174.97,174.95,0.04354239]
[1748046984131,126.24,175.01,174.95,0.04354239]
[1748046984337,5.714,174.98,174.95,0.04354239]
[1748046984936,5.7142,174.97,174.95,0.04354239]
[1748046985635,5.714,174.98,174.95,0.04354239]
[1748046985839,126.24,175.01,174.95,0.04354239]
[1748046986530,2.0325,175.03,174.95,126.22354239]
[1748046987024,131.8919,175.05,174.95,240.84336178]
[1748046987436,5.7121,175.04,175.0,5.713]
[1748046987738,126.18,175.05,175.0,0.03741508]
[1748046988334,131.8916,175.05,175.02,5.7124]
[1748046988635,5.7116,175.05,175.02,5.7124]
[1748046988824,5.7107,175.08,175.04,5.7117]
[1748046989030,126.18,175.09,175.04,5.75008148]
[1748046989845,5.7107,175.08,175.04,5.75008148]
[1748046990044,126.18,175.09,175.04,0.03838148]
[1748046990341,5.711,175.07,175.04,0.03838148]
[1748046990549,0.03838148,175.07,174.96,7.97181939]
[1748046990746,132.15981939,175.09,174.94,126.16]
[1748046990947,5.7128,175.02,174.94,126.16]
[1748046991243,126.16,175.04,174.94,126.16]
[1748046991439,126.16,175.06,174.94,126.16]
[1748046991640,0.03838148,175.02,174.98,0.04147555]
[1748046991847,0.03838148,175.02,174.98,0.03760903]
[1748046992749,0.03838148,175.02,174.99,5.7133]
[1748046993042,0.03838148,175.02,174.98,0.03760903]
[1748046993347,114.18656496,175.07,175.0,5.713]
[1748046993654,5.7123,175.03,174.95,1.8497]
[1748046994040,5.7126,175.02,174.95,1.8497]
[1748046994244,5.7126,175.02,174.97,0.04379831]
[1748046994544,1.8862,175.05,174.97,0.04379831]
[1748046995850,5.7121,175.04,175.0,5.713]
[1748046996050,1.8862,175.05,175.0,0.03859027]
[1748046996349,5.7126,175.03,175.0,0.03859027]
[1748046996651,1.8862,175.05,175.0,0.03859027]
[1748046996855,5.7124,175.03,175.0,0.03859027]
[1748046997036,1.8862,175.05,175.0,0.03859027]
[1748046997951,7.5979,175.05,175.0,0.03859027]
[1748046998247,1.8862,175.05,175.0,0.03859027]
[1748046998450,5.7122,175.04,175.0,5.75179027]
[1748046998638,1.8862,175.05,175.0,5.75179027]
[1748046998839,1.8862,175.05,175.0,0.03859027]
[1748046999448,1.8627,175.04,175.0,0.03859027]
[1748046999752,5.7125,175.03,175.0,0.03859027]
[1748047000049,1.8627,175.04,175.0,0.03859027]
[1748047000549,5.7129,175.01,175.0,0.03859027]
[1748047001050,1.8627,175.04,175.0,0.03859027]
[1748047002152,5.7129,175.02,175.0,0.03859027]
[1748047002752,5.7124,175.03,175.0,0.03859027]
[1748047002953,1.8627,175.04,175.0,0.03859027]
[1748047003253,1.8627,175.04,175.02,5.7126]
[1748047003454,1.8862,175.05,175.02,5.7126]
[1748047004050,7.5978,175.05,175.02,5.7126]
[1748047004551,1.8862,175.05,175.02,5.7126]
[1748047004752,2.042,175.1,175.03,5.7123]
[1748047004952,125.7,175.07,175.05,0.03790728]
[1748047005449,131.4112,175.07,175.05,0.03790728]
[1748047006053,125.7,175.07,175.05,5.74940728]
[1748047006252,125.7,175.07,175.05,0.03790728]
[1748047007255,5.9782,175.1,175.05,0.03790728]
[1748047007452,131.6582,175.1,175.05,0.03790728]
[1748047008343,137.3684,175.1,175.07,5.711]
[1748047008542,129.7316,175.1,175.07,5.711]
[1748047008947,125.68,175.1,175.07,5.711]
[1748047009149,125.68,175.1,175.08,5.7106]
[1748047010656,125.68,175.1,175.07,5.7109]
[1748047012254,125.68,175.1,175.08,5.7106]
[1748047012963,125.68,175.1,175.09,5.7103]
[1748047013761,5.7091,175.13,175.09,5.7103]
[1748047013951,5.7094,175.12,175.09,0.03783677]
[1748047014958,5.71,175.1,175.09,0.03783677]
[1748047016960,5.7099,175.11,175.09,0.03783677]
[1748047017460,129.6364,175.14,175.09,0.03783677]
[1748047017860,5.7094,175.12,175.09,0.03783677]
[1748047018659,125.66,175.14,175.09,0.03783677]
[1748047018860,3.8414,175.13,175.09,0.03783677]
[1748047021169,5.7098,175.11,175.09,0.03783677]
[1748047021966,5.71,175.1,175.09,0.03783677]
[1748047022167,5.97981939,175.12,174.97,1.9013]
[1748047022469,5.97981939,175.12,174.99,6.17166227]
[1748047022666,5.7111,175.07,175.03,5.7121]
[1748047022866,131.3511,175.07,175.03,5.7121]
[1748047023365,125.67783677,175.07,175.03,0.04306977]
[1748047023880,125.67783677,175.07,175.05,5.7114]
[1748047024466,125.67783677,175.07,175.03,0.04306977]
[1748047024768,125.67783677,175.07,175.05,5.7115]
[1748047025167,125.67783677,175.07,175.03,0.04306977]
[1748047026266,5.712,175.04,175.03,0.04306977]
[1748047026864,1.9388,175.06,175.03,0.04306977]
[1748047027171,1.9388,175.06,175.04,5.7119]
[1748047027357,125.67783677,175.07,175.03,0.04306977]
[1748047027556,125.67783677,175.07,175.05,5.7115]
[1748047029361,125.67783677,175.07,175.04,5.7119]
[1748047030067,125.67783677,175.07,175.05,5.7116]
[1748047030574,125.67783677,175.07,175.04,5.7118]
[1748047031074,125.67783677,175.07,175.03,0.04306977]
[1748047032376,4.0189,175.06,175.03,0.04306977]
[1748047032872,4.0189,175.06,174.98,5.7138]
[1748047033376,4.0189,175.06,174.93,189.64]
[1748047033571,4.0189,175.06,174.94,6.19076953]
[1748047033773,4.0189,175.06,174.95,6.19076953]
[1748047033975,0.04168713,175.02,174.99,0.03756704]
[1748047034274,125.70168713,175.02,174.99,0.03756704]
[1748047035374,125.70168713,175.02,175.0,5.7131]
[1748047036172,125.70168713,175.02,174.99,5.75106704]
[1748047037776,125.70168713,175.02,175.0,5.7132]
[1748047038672,125.70168713,175.02,174.99,5.75106704]
[1748047039981,131.41428713,175.02,174.99,0.03756704]
[1748047040173,125.70168713,175.02,174.99,0.03756704]
[1748047041878,125.70168713,175.02,175.0,5.7132]
[1748047042271,0.04168713,175.02,174.99,0.03756704]
[1748047042470,0.04168713,175.02,175.01,5.7129]
[1748047042671,0.04168713,175.02,175.01,11.93405095]
[1748047042883,0.04168713,175.02,175.01,11.93267635]
[1748047046282,0.04168713,175.02,175.01,6.21977635]
[1748047046986,0.04168713,175.02,175.01,11.93267635]
[1748047048381,125.3,175.06,175.05,5.7116]
[1748047049084,125.3,175.06,175.05,11.92726365]
[1748047050894,125.3,175.06,175.05,11.92908315]
[1748047051789,125.3,175.06,175.05,11.92929182]
[1748047052185,0.03921941,175.07,175.06,5.7113]
[1748047052586,0.03921941,175.07,175.06,11.92940717]
[1748047056909,0.03921941,175.07,175.06,75.92940717]
[1748047057306,1.941e-05,175.07,175.06,75.92399557]
[1748047059213,1.941e-05,175.07,175.06,75.92393422]
[1748047060013,1.941e-05,175.07,175.06,70.21263422]
[1748047060615,1.941e-05,175.07,175.06,6.21263422]
[1748047060915,1.941e-05,175.07,175.04,0.04230725]
[1748047061112,1.941e-05,175.07,175.05,6.21348018]
[1748047061412,1.941e-05,175.07,175.04,0.04230725]
[1748047061611,1.941e-05,175.07,175.05,6.21403278]
[1748047061813,1.941e-05,175.07,175.04,5.75410725]
[1748047062003,1.941e-05,175.07,175.05,6.21140563]
[1748047062208,1.941e-05,175.07,175.04,0.04230725]
[1748047062411,5.7116,175.05,175.04,0.04230725]
[1748047063618,1.98701941,175.07,175.04,0.04230725]
[1748047064115,1.941e-05,175.07,175.04,0.04230725]
[1748047065120,1.941e-05,175.07,175.05,6.20355608]
[1748047065315,1.941e-05,175.07,175.06,6.20355608]
[1748047066019,1.941e-05,175.07,175.06,11.91485608]
[1748047067112,1.941e-05,175.07,175.06,11.91536709]
[1748047068121,1.941e-05,175.07,175.06,11.91500613]
[1748047069921,124.92,175.14,175.12,5.7091]
[1748047070122,124.92,175.14,175.06,5.97981939]
[1748047070320,124.92,175.18,175.07,6.19859718]
[1748047070522,124.92,175.18,175.14,5.7085]
[1748047070815,124.92,175.18,175.14,0.03945486]
[1748047071017,124.92,175.18,175.14,5.74815486]
[1748047071221,124.92,175.18,175.14,0.03945486]
[1748047071425,5.7084,175.15,175.14,0.03945486]
[1748047071720,124.92,175.18,175.14,0.03945486]
[1748047072624,5.7078,175.17,175.14,0.03945486]
[1748047072821,124.92,175.18,175.14,0.03945486]
[1748047073223,5.7078,175.17,175.14,0.03945486]
[1748047073625,5.7081,175.16,175.14,0.03945486]
[1748047073925,124.92,175.18,175.14,0.03945486]
[1748047074221,130.6277,175.18,175.14,5.74815486]
[1748047075424,5.7078,175.17,175.14,0.03945486]
[1748047076421,124.92,175.18,175.15,5.7084]
[1748047076927,124.92,175.18,175.14,0.03945486]
[1748047078017,124.92,175.18,175.14,5.74805486]
[1748047078218,124.88,175.2,175.14,0.03945486]
[1748047078927,5.7065,175.21,175.14,0.03945486]
[1748047079520,5.7065,175.21,175.16,5.708]
[1748047079721,5.7065,175.21,175.14,0.03945486]
[1748047080128,5.7068,175.2,175.16,5.7078]
[1748047080428,124.88,175.19,175.14,0.03945486]
[1748047082129,5.7075,175.18,175.14,5.74805486]
[1748047083632,5.7078,175.17,175.14,0.03945486]
[1748047084024,124.88,175.19,175.14,0.03945486]
[1748047086335,124.88,175.19,175.18,5.7074]
[1748047086932,5.8888,175.22,175.2,5.7067]
[1748047087235,3.9778,175.22,175.19,0.04031978]
[1748047087532,3.9778,175.22,175.2,5.7068]
[1748047087735,3.9778,175.22,175.19,0.04031978]
[1748047088229,124.88,175.23,175.19,0.04031978]
[1748047088737,124.86,175.26,175.19,0.04031978]
[1748047089432,5.7057,175.24,175.21,5.7062]
[1748047089836,124.86,175.26,175.19,0.04031978]
[1748047090033,5.7052,175.25,175.22,5.7059]
[1748047092233,124.86,175.26,175.23,5.7057]
[1748047092431,124.86,175.26,175.23,0.03796477]
[1748047093334,130.565,175.26,175.23,0.03796477]
[1748047093932,5.7052,175.25,175.23,0.03796477]
[1748047094133,124.86,175.26,175.23,0.03796477]
[1748047094329,136.50171148,175.26,175.15,5.7083]
[1748047094537,5.94171148,175.23,175.11,124.84]
[1748047094839,3.8838,175.22,175.11,124.84]
[1748047095137,124.84,175.21,175.11,124.84]
[1748047095335,0.03738715,175.18,175.14,0.038344]
[1748047096528,0.03738715,175.18,175.17,5.7077]
[1748047096734,0.03738715,175.18,175.14,0.038344]
[1748047097036,5.74478715,175.18,175.14,0.038344]
[1748047097537,0.03738715,175.18,175.15,5.7084]
[1748047099238,5.74488715,175.18,175.14,5.746944]
[1748047099440,0.03738715,175.18,175.14,0.038344]
[1748047099943,0.03738715,175.18,175.15,5.7084]
[1748047100445,5.7081,175.16,175.14,0.038344]
[1748047100638,124.48,175.16,175.14,0.038344]
[1748047101644,0.03738715,175.18,175.14,0.038344]
[1748047102734,0.03738715,175.18,175.16,5.7078]
[1748047103139,0.03738715,175.18,175.14,0.038344]
[1748047103341,0.03738715,175.18,175.17,5.7077]
[1748047103542,0.03738715,175.18,175.14,0.038344]
[1748047104445,0.03738715,175.18,175.15,5.7083]
[1748047104649,0.03738715,175.18,175.14,0.038344]
[1748047105147,0.03738715,175.18,175.16,5.7081]
[1748047105747,0.03738715,175.18,175.17,5.7077]
[1748047105949,0.03738715,175.18,175.14,0.038344]
[1748047106756,0.03738715,175.18,175.15,5.7081]
[1748047107243,0.03738715,175.18,175.14,0.038344]
[1748047108550,5.74488715,175.18,175.15,5.7083]
[1748047109048,0.03738715,175.18,175.14,0.038344]
[1748047109648,5.74478715,175.18,175.15,5.7083]
[1748047110151,0.03738715,175.18,175.15,5.7083]
[1748047110337,0.03738715,175.18,175.16,5.708]
[1748047110543,0.03738715,175.18,175.14,0.038344]
[1748047110945,5.74488715,175.18,175.14,0.038344]
[1748047111148,0.03738715,175.18,175.14,0.038344]
[1748047111651,5.7084,175.15,175.14,0.038344]
[1748047112252,0.03738715,175.18,175.14,0.038344]
[1748047112952,5.708,175.17,175.14,0.038344]
[1748047113453,5.7082,175.16,175.14,0.038344]
[1748047113753,0.03738715,175.18,175.14,0.038344]
[1748047114754,0.03738715,175.18,175.15,5.7083]
[1748047115350,0.03738715,175.18,175.14,0.038344]
[1748047115551,0.03738715,175.18,175.15,6.24848216]
[1748047115846,0.03738715,175.18,175.14,0.038344]
[1748047116051,0.03738715,175.18,175.15,6.2483078]
[1748047116350,0.03738715,175.18,175.14,0.038344]
[1748047116553,0.03738715,175.18,175.17,5.7077]
[1748047116752,0.03738715,175.18,175.14,0.038344]
[1748047116954,0.03738715,175.18,175.16,5.7079]
[1748047117342,0.03738715,175.18,175.14,0.038344]
[1748047117550,0.03738715,175.18,175.15,6.25236581]
[1748047117758,0.03738715,175.18,175.17,5.7077]
[1748047118249,0.03738715,175.18,175.17,11.960932]
[1748047119055,0.03738715,175.18,175.17,5.7077]
[1748047120051,0.03738715,175.18,175.16,5.7079]
[1748047120355,0.03738715,175.18,175.14,0.038344]
[1748047121359,0.03738715,175.18,175.17,5.7077]
[1748047122056,0.03738715,175.18,175.14,0.038344]
[1748047122657,0.03738715,175.18,175.17,5.7077]
[1748047122853,0.03738715,175.18,175.17,11.96484872]
[1748047123154,0.03738715,175.18,175.17,6.25714872]
[1748047123761,0.03738715,175.18,175.16,5.7078]
[1748047125160,0.03738715,175.18,175.17,5.7077]
[1748047126954,0.03738715,175.18,175.16,5.708]
[1748047127257,0.03738715,175.18,175.16,5.7079]
[1748047127663,0.03738715,175.18,175.17,6.24691268]
[1748047127854,0.03738715,175.18,175.17,11.95461268]
[1748047128262,0.03738715,175.18,175.17,11.95402228]
[1748047130163,0.03738715,175.18,175.17,11.95810549]
[1748047131356,0.03738715,175.18,175.17,6.25040549]
[1748047131563,0.03738715,175.18,175.14,0.038344]
[1748047131768,0.03738715,175.18,175.15,11.96022555]
[1748047131960,0.03738715,175.18,175.15,5.7083]
[1748047132263,0.03738715,175.18,175.16,6.25221191]
[1748047132460,0.03738715,175.18,175.15,5.7083]
[1748047132766,0.03738715,175.18,175.17,5.7077]
[1748047133067,0.03738715,175.18,175.17,11.9608144]
[1748047135960,0.03738715,175.18,175.17,5.7077]
[1748047136166,0.03738715,175.18,175.17,11.96182717]
[1748047139665,0.03738715,175.18,175.17,11.96885689]
[1748047140761,0.03738715,175.18,175.17,6.26115689]
[1748047141174,0.03738715,175.18,175.17,6.26101773]
[1748047141659,5.74478715,175.18,175.17,6.26101773]
[1748047141968,5.74478715,175.18,175.14,0.038344]
[1748047141969,0.03738715,175.18,175.14,0.038344]
[1748047142169,0.03738715,175.18,175.15,6.26624987]
[1748047142369,0.03738715,175.18,175.16,6.26624987]
[1748047142558,0.03738715,175.18,175.17,6.26624987]
[1748047142760,0.03738715,175.18,175.17,11.97394987]
[1748047145670,136.61383126,175.26,175.17,6.26624987]
[1748047145875,136.61383126,175.26,175.18,6.26624987]
[1748047146169,142.55554274,175.26,175.19,6.26624987]
[1748047146476,5.94171148,175.23,175.12,124.12]
[1748047146678,3.7655,175.22,175.16,0.04017478]
[1748047146880,5.7074,175.18,175.17,6.25341246]
[1748047147177,124.12,175.21,175.17,6.25341246]
[1748047147366,5.7071,175.19,175.16,5.74817478]
[1748047147570,124.12,175.21,175.17,6.25622957]
[1748047147772,124.12,175.21,175.16,0.04017478]
[1748047147968,124.12,175.21,175.17,6.25676798]
[1748047148270,124.12,175.21,175.16,0.04017478]
[1748047148576,5.7073,175.19,175.17,6.25661545]
[1748047148774,5.7073,175.19,175.16,0.04017478]
[1748047149481,5.7074,175.18,175.16,0.04017478]
[1748047149680,124.12,175.21,175.16,0.04017478]
[1748047149976,5.7068,175.2,175.16,0.04017478]
[1748047150165,5.7068,175.2,175.17,6.25585214]
[1748047150368,5.7068,175.2,175.18,6.25531099]
[1748047150668,124.12,175.21,175.19,6.25449992]
[1748047150865,124.12,175.21,175.16,0.04017478]
[1748047151076,124.12,175.21,175.18,5.7072]
[1748047151277,124.12,175.21,175.19,6.25479736]
[1748047151470,124.12,175.21,175.18,5.7072]
[1748047151671,124.12,175.21,175.19,6.25635631]
[1748047151873,124.12,175.21,175.18,5.7072]
[1748047152072,124.12,175.21,175.19,6.25635191]
[1748047152271,124.12,175.21,175.16,0.04017478]
[1748047152476,124.12,175.21,175.17,6.25711052]
[1748047152678,124.12,175.21,175.18,6.25711052]
[1748047152875,124.12,175.21,175.19,11.96401052]
[1748047153080,124.12,175.21,175.2,6.25711052]
[1748047153283,10.51773126,175.25,175.2,6.25711052]
[1748047153584,134.65773126,175.25,175.22,5.7059]
[1748047153781,134.65773126,175.25,175.21,0.03607569]
[1748047153982,134.65773126,175.25,175.24,5.7055]
[1748047154186,134.65773126,175.25,175.24,11.95860398]
[1748047154484,134.65773126,175.25,175.24,5.7055]
[1748047154679,134.65773126,175.25,175.21,0.03607569]
[1748047154980,5.7055,175.24,175.22,6.25064336]
[1748047155187,134.65773126,175.25,175.21,0.03607569]
[1748047155371,10.51773126,175.25,175.22,6.25155829]
[1748047155578,10.51773126,175.25,175.23,6.2493204]
[1748047155782,10.51773126,175.25,175.21,0.03607569]
[1748047155987,10.51773126,175.25,175.24,5.7055]
[1748047156283,124.14,175.27,175.21,0.03607569]
[1748047156473,124.14,175.27,175.23,5.7056]
[1748047156676,124.14,175.27,175.22,6.24812134]
[1748047156677,124.14,175.27,175.21,0.03607569]
[1748047156884,124.14,175.27,175.22,6.24888802]
[1748047157182,124.14,175.27,175.23,6.24863682]
[1748047157379,124.14,175.27,175.21,0.03607569]
[1748047157576,124.14,175.27,175.22,6.2473711]
[1748047157777,124.14,175.27,175.23,6.2473711]
[1748047157975,124.14,175.27,175.21,0.03607569]
[1748047158177,124.14,175.27,175.22,6.24661367]
[1748047158386,124.14,175.27,175.23,6.24661367]
[1748047158578,124.14,175.27,175.21,0.03607569]
[1748047158786,124.14,175.27,175.23,5.7055]
[1748047159175,124.14,175.27,175.21,0.03607569]
[1748047159387,124.14,175.27,175.22,6.24646348]
[1748047159584,124.14,175.27,175.23,6.24646348]
[1748047159885,124.14,175.27,175.21,0.03607569]
[1748047160086,5.7052,175.25,175.22,11.9533481]
[1748047160280,5.7052,175.25,175.23,6.2474481]
[1748047160581,5.7052,175.25,175.22,5.7059]
[1748047160781,5.7052,175.25,175.23,6.24889033]
[1748047160982,124.14,175.27,175.21,0.03607569]
[1748047161384,126.0108,175.27,175.21,0.03607569]
[1748047161587,5.7061,175.22,175.21,0.03607569]
[1748047162680,123.8,175.23,175.21,0.03607569]
[1748047163691,129.5059,175.23,175.21,0.03607569]
[1748047165690,5.7061,175.22,175.21,0.03607569]
[1748047166687,129.5058,175.23,175.21,0.03607569]
[1748047167293,123.8,175.23,175.21,0.03607569]
[1748047167786,10.51773126,175.26,175.21,0.03607569]
[1748047167980,10.51773126,175.26,175.22,6.25574672]
[1748047168180,10.51773126,175.26,175.21,0.03607569]
[1748047168380,10.51773126,175.26,175.23,5.7057]
[1748047168577,10.51773126,175.26,175.21,0.03607569]
[1748047168978,16.22263126,175.26,175.22,5.7061]
[1748047169193,10.51773126,175.26,175.22,5.7061]
[1748047169490,10.51773126,175.26,175.21,0.03607569]
[1748047169692,129.5051,175.25,175.21,5.74227569]
[1748047169993,123.8,175.25,175.21,5.74227569]
[1748047170293,129.5052,175.25,175.22,5.7061]
[1748047170487,123.8,175.25,175.21,0.03607569]
[1748047170685,123.8,175.25,175.22,6.25875793]
[1748047170883,123.8,175.25,175.21,0.03607569]
[1748047171086,123.8,175.25,175.22,6.25893509]
[1748047171292,123.8,175.25,175.21,0.03607569]
[1748047171491,123.8,175.25,175.22,6.2570248]
[1748047171690,123.8,175.25,175.21,0.03607569]
[1748047171891,123.8,175.25,175.23,5.7055]
[1748047172384,123.8,175.25,175.21,0.03607569]
[1748047172585,123.8,175.25,175.22,6.25698531]
[1748047172782,123.8,175.25,175.23,6.25756105]
[1748047172992,123.8,175.25,175.21,0.03607569]
[1748047173188,123.8,175.25,175.23,5.7055]
[1748047173696,123.8,175.29,175.24,6.25596624]
[1748047173896,123.8,175.29,175.25,0.04034548]
[1748047174401,5.7042,175.28,175.25,0.04034548]
[1748047175200,5.7045,175.27,175.25,0.04034548]
[1748047175596,123.8,175.29,175.25,0.04034548]
[1748047177201,129.504,175.29,175.26,5.7048]
[1748047177503,123.78,175.29,175.25,0.04034548]
[1748047178005,129.4838,175.29,175.26,5.7046]
[1748047178305,123.78,175.29,175.25,0.04034548]
[1748047178599,10.51773126,175.34,175.25,0.04034548]
[1748047178795,10.51773126,175.34,175.26,6.2384756]
[1748047178995,10.51773126,175.34,175.27,6.2384756]
[1748047179194,5.7025,175.33,175.29,0.04031821]
[1748047179602,5.7029,175.32,175.29,5.74411821]
[1748047179794,10.51773126,175.34,175.29,0.04031821]
[1748047180303,5.7032,175.32,175.29,0.04031821]
[1748047180602,10.51773126,175.34,175.29,0.04031821]
[1748047181103,125.6221,175.36,175.29,0.04031821]
[1748047181301,5.7033,175.31,175.29,0.04031821]
[1748047181599,123.76,175.34,175.29,0.04031821]
[1748047181802,129.4625,175.34,175.29,5.74391821]
[1748047182001,123.76,175.34,175.29,0.04031821]
[1748047182401,123.76,175.34,175.32,5.7026]
[1748047183403,123.76,175.34,175.31,5.7031]
[1748047185405,123.76,175.34,175.3,5.7034]
[1748047185607,129.70171148,175.34,175.24,64.0]
[1748047185807,129.70171148,175.34,175.21,64.0]
[1748047186002,5.7044,175.28,175.24,5.7053]
[1748047186207,123.76,175.27,175.19,123.76]
[1748047186410,123.76,175.27,175.2,6.23351651]
[1748047186708,0.04089583,175.25,175.22,0.03707649]
[1748047187110,0.04089583,175.25,175.24,5.7055]
[1748047188202,9.583e-05,175.25,175.24,5.7055]
[1748047188407,131.2274,175.35,175.32,5.7027]
[1748047188708,10.51773126,175.34,175.32,5.7027]
[1748047190212,16.22013126,175.34,175.31,0.03946692]
[1748047192309,10.51773126,175.34,175.31,0.03946692]
[1748047192717,131.2273,175.35,175.31,5.74236692]
[1748047193213,1.8839,175.36,175.32,5.7027]
[1748047193214,123.48,175.34,175.32,5.7027]
[1748047193914,123.48,175.34,175.31,5.74256692]
[1748047194116,123.48,175.34,175.31,0.03946692]
[1748047195616,5.7028,175.32,175.31,0.03946692]
[1748047198319,5.7026,175.33,175.31,0.03946692]
[1748047198919,5.7028,175.32,175.31,0.03946692]
[1748047200218,133.33121148,175.34,175.22,123.48]
[1748047200423,133.33121148,175.34,175.17,113.6929549]
[1748047200424,5.94171148,175.31,175.18,123.48]
[1748047200623,5.7057,175.24,175.19,6.24183034]
[1748047200920,123.48,175.24,175.2,6.24183034]
[1748047201112,123.51705549,175.24,175.2,0.03644617]
[1748047201316,5.7058,175.23,175.2,0.03644617]
[1748047201621,123.51705549,175.24,175.2,0.03644617]
[1748047202218,0.03705549,175.24,175.2,0.03644617]
[1748047204224,0.03705549,175.24,175.22,5.7058]
[1748047204523,0.03705549,175.24,175.2,0.03644617]
[1748047205824,5.7064,175.22,175.2,0.03644617]
[1748047206123,0.03705549,175.24,175.2,0.03644617]
[1748047206423,5.7063,175.22,175.2,0.03644617]
[1748047206720,0.03705549,175.24,175.2,0.03644617]
[1748047206923,123.5,175.21,175.2,0.03644617]
[1748047207315,129.2064,175.21,175.2,0.03644617]
[1748047208426,5.7078,175.17,175.1,129.44171148]
[1748047208726,5.7078,175.17,175.13,5.7088]
[1748047208925,129.2278,175.17,175.13,5.7088]